[Event "4th Tata Steel India Blitz Women 2022"]
[Site "Kolkota"]
[Date "2022.12.04"]
[Round "17.5"]
[White "Harika, Dronavalli"]
[Black "Muzychuk, Mariya"]
[Result "1-0"]
[ECO "A05"]
[WhiteElo "2507"]
[BlackElo "2528"]
[Annotator "TA"]
[PlyCount "127"]
[EventDate "2022.11.29"]
[EventType "tourn"]
[EventCountry "IND"]
[SourceTitle "playchess.com"]
[Source "ChessBase"]
[SourceQuality "1"]
[TimeControl "180+2"]

{[%evp 15,127,10,4,0,0,0,0,0,6,0,0,0,0,-53,-43,-75,-33,-14,0,0,0,0,0,0,0,0,0,-16,-11,-10,0,0,103,98,140,54,54,10,78,42,117,16,148,148,328,317,322,323,310,297,290,255,273,260,238,184,184,183,176,168,168,116,158,134,151,143,528,181,211,130,130,130,136,104,211,211,211,211,211,211,211,211,206,200,230,166,166,0,29961,12827,29966,29965,5089,5081,29976,29975,29975,29976,29976,29977,29977,29978,29977,29978,29981,29982,29983,29983,29984,29985,29985,29985,29987,29988]} 1. b3 {[%emt 0:00:01]} c5 {[%emt 0:00:02]} 2. Bb2 {[%emt 0:00:01]} d5 {[%emt 0:00:02]} 3. Nf3 {[%emt 0:00:06]} Nc6 {[%emt 0:00:00]} 4. g3 {[%emt 0:00:11]} Nf6 {[%emt 0:00:02]} 5. Bg2 {[%emt 0:00:01]} g6 {[%emt 0:00:05]} 6. d4 {[%emt 0:00:12]} cxd4 {[%emt 0:00:06]} 7. Nxd4 {[%emt 0:00:01]} Bg7 {[%emt 0:00:02]} 8. O-O {[%emt 0:00:05]} O-O {[%emt 0:00:01]} 9. c4 {[%emt 0:00:13] A05: Réti Opening: 1 Nf3 Nf6.} Nxd4 {[%emt 0:00:12]} 10. Bxd4 dxc4 {[%emt 0:00:03]} 11. bxc4 {[%emt 0:00:03] The position is equal.} Qc7 {[%emt 0:00:03] Strongly threatening ...Rd8.} 12. Qb3 {[%emt 0:00:08]} Rd8 {[%emt 0:00:12]} 13. e3 {[%emt 0:00:23]} e5 {[%emt 0:00:25] [#]} 14. Bb2 $146 {[%emt 0:00:07]} (14. Bc3 $11) ({Predecessor:} 14. Bc3 Nd7 15. Na3 a6 16. Nc2 Nc5 17. Qa3 e4 18. Bd4 Bf8 19. Qc3 f5 20. f3 exf3 21. Bxf3 {1-0 (31) Abakarov,A (2159)-Velikanov,I (2231) Sochi 2018}) 14... Be6 $15 {[%emt 0:00:05]} 15. Na3 {[%emt 0:00:03][%cal Of1b1]} (15. Qxb7 $2 Qxb7 16. Bxb7 Rab8 17. Bxe5 Rxb7 $19) 15... Rac8 {[%emt 0:00:10][%cal Ba8c8,Bc8d8,Bd8d3][%mdl 32]} 16. Rfd1 {[%emt 0:00:24]} (16. Qxb7 $2 Qxb7 17. Bxb7 Rb8 $19) 16... b6 {[%emt 0:00:03]} (16... Bxc4 $2 17. Rxd8+ (17. Qxb7 Rxd1+ 18. Rxd1 Bxa2 $14) 17... Rxd8 18. Nxc4 $18) 17. Nb5 {[%emt 0:00:17]} Qb8 {[%emt 0:00:24]} 18. Rxd8+ {[%emt 0:00:01]} Rxd8 {[%emt 0:00:01]} 19. Nc3 {[%emt 0:00:02]} Rd3 {[%emt 0:00:23] Against Nd5} 20. Bf1 {[%emt 0:00:13]} Rd2 {[%emt 0:00:13]} 21. Rd1 {[%emt 0:00:01]} Qd8 {[%emt 0:00:04]} 22. Nd5 {[%emt 0:00:28]} Rxd1 {[%emt 0:00:06]} (22... Ne4 {keeps more tension.} 23. Rxd2 Nxd2 24. Qa4 Nxf1 25. Kxf1 Qd7) 23. Qxd1 {[%emt 0:00:02]} Qb8 {[%emt 0:00:52]} (23... Ne4 $11 {keeps the balance.}) 24. Ne7+ $1 $16 {[%emt 0:00:09]} Kh8 {[%emt 0:00:00] [#]} 25. Nc6 {[%emt 0:00:01] White is more active.} ({Better is} 25. Bxe5 $1 $16 {[%mdl 512]} Qf8 (25... Qe8 26. Qd6) 26. Qd6) 25... Qc7 $14 {[%emt 0:00:02]} 26. Nxe5 {[%emt 0:00:09]} (26. Bxe5 $2 {perishes.} Qxc6 27. Qd4 Ne8 $19) (26. Qd8+ {simplifies} Qxd8 27. Nxd8 Nd7 28. Nxe6 fxe6 29. Bh3) 26... Ne4 {[%emt 0:00:00]} (26... Nd7 $11 {remains equal.} 27. Nd3 Qxc4) 27. Qd4 {[%emt 0:00:01]} (27. Qf3 $5 {[%cal Rf3e4]} Bxe5 28. Qf4 $16) 27... Nc5 {[%emt 0:00:03]} (27... Bxe5 $14 28. Qxe5+ Qxe5 29. Bxe5+ Kg8) 28. Bg2 {[%emt 0:00:19]} (28. Qf4 $16 {[%cal Oe5g6] aiming for Nxg6+!} Qc8 29. Bd4 (29. Nxf7+ Bxf7 30. Qxf7 Bxb2 $17)) 28... f5 {[%emt 0:00:03]} (28... Kg8 $11) 29. Bd5 $16 {[%emt 0:00:02]} Kg8 $2 {[%emt 0:00:08] [#]} (29... Qxe5 $16 {is a better defense.} 30. Qxe5 Bxe5 31. Bxe5+ Kg8) 30. Bxe6+ $1 $18 {[%emt 0:00:02]} Nxe6 {[%emt 0:00:01]} 31. Qd5 {[%emt 0:00:01]} Qe7 {[%emt 0:00:03]} 32. Nc6 {[%emt 0:00:02]} Qf7 {[%emt 0:00:02]} 33. Nd8 {[%emt 0:00:08]} Nxd8 {[%emt 0:00:05]} 34. Qxd8+ {[%emt 0:00:01]} Qf8 {[%emt 0:00:02]} 35. Qxf8+ {[%emt 0:00:02]} Bxf8 {[%emt 0:00:00][%mdl 4096] Endgame KB-KB} 36. Kf1 {[%emt 0:00:01]} Kf7 {[%emt 0:00:01]} 37. Ke2 {[%emt 0:00:01]} Ke6 {[%emt 0:00:00]} 38. Kd3 {[%emt 0:00:01]} (38. h3 $18) 38... Bb4 {[%emt 0:00:01]} 39. f3 {[%emt 0:00:03]} h5 {[%emt 0:00:03]} 40. Bd4 {[%emt 0:00:03]} Be1 $2 {[%emt 0:00:01][%mdl 8192]} (40... Be7 $16 {is tougher.} 41. f4 g5 42. fxg5 Bxg5) 41. e4 $2 {[%emt 0:00:02]} (41. Bc3) 41... h4 {[%emt 0:00:06]} 42. gxh4 {[%emt 0:00:07]} Bxh4 {[%emt 0:00:02]} 43. h3 {[%emt 0:00:01]} Bg3 {[%emt 0:00:02]} 44. c5 {[%emt 0:00:01]} bxc5 {[%emt 0:00:03]} (44... fxe4+ $16 45. fxe4 (45. Kxe4 bxc5 46. Bxc5 a6 $16) 45... b5) 45. Bxc5 {[%emt 0:00:01]} a6 46. Bd4 {[%emt 0:00:02]} Bd6 {[%emt 0:00:02]} 47. Kc4 {[%emt 0:00:03]} fxe4 {[%emt 0:00:03]} 48. fxe4 {[%emt 0:00:00]} Be7 {[%emt 0:00:02]} 49. a4 {[%emt 0:00:01]} Bd6 {[%emt 0:00:03]} 50. Bc5 {[%emt 0:00:03] Bxd6 would kill now.} Bf4 {[%emt 0:00:04]} 51. Bd4 $2 {[%emt 0:00:05]} (51. Bb4 $18) 51... Bg3 $2 {[%emt 0:00:01][%mdl 8192]} (51... Bd6 $11) 52. Kc5 {[%emt 0:00:03] Intending Kb6 and mate.} Bc7 {[%emt 0:00:02]} 53. Kc6 {[%emt 0:00:01]} Bd8 {[%emt 0:00:01]} 54. Kb7 {[%emt 0:00:01]} a5 {[%emt 0:00:00]} 55. Ka6 {[%emt 0:00:00] White mates.} Bc7 {[%emt 0:00:02] [#]} 56. Kb5 $1 {[%emt 0:00:01]} Bd8 {[%emt 0:00:00]} 57. Bc3 {[%emt 0:00:01]} Bc7 {[%emt 0:00:03]} 58. Bxa5 {[%emt 0:00:01]} Be5 {[%emt 0:00:01]} 59. Bb6 {[%emt 0:00:02]} Kd7 {[%emt 0:00:02]} 60. a5 {[%emt 0:00:02][%cal Ba4a5,Ba5a6][%mdl 32]} Bf4 {[%emt 0:00:02]} 61. a6 {[%emt 0:00:01]} Kc8 62. Kc6 {[%emt 0:00:01]} Kb8 {[%emt 0:00:00]} 63. Kd5 {[%emt 0:00:02]} g5 {[%emt 0:00:02]} 64. e5 {[%emt 0:00:02] Weighted Error Value: White=0.25 (precise) /Black=0.62} 1-0

[Event "4th Tata Steel India Blitz Women 2022"]
[Site "Kolkota"]
[Date "2022.12.04"]
[Round "18.1"]
[White "Savitha Shri B"]
[Black "Harika, Dronavalli"]
[Result "0-1"]
[ECO "B00"]
[WhiteElo "2411"]
[BlackElo "2507"]
[Annotator "TA"]
[PlyCount "82"]
[EventDate "2022.11.29"]
[EventType "tourn"]
[EventCountry "IND"]
[SourceTitle "playchess.com"]
[Source "ChessBase"]
[SourceQuality "1"]
[TimeControl "180+2"]

{[%evp 9,82,48,67,51,59,46,55,51,56,50,37,20,41,37,45,45,55,0,25,16,24,21,34,34,38,44,106,110,100,0,3,-6,-6,-100,-69,-120,-115,-116,-113,-139,-124,-175,-107,-216,-214,-278,-270,-352,-296,-725,-701,-1005,-941,-874,-668,-1496,-1501,-1466,-1501,-1242,-1139,-1016,-904,-29993,-29969,-29992,-29993,-29993,-29992,-29992,-29993,-29995,-29982,-29984,-29979]} 1. e4 {[%emt 0:00:01]} Nc6 {[%emt 0:00:00]} 2. d4 {[%emt 0:00:04][%cal Bd2d4,Bd4d5][%mdl 32]} e5 {[%emt 0:00:02]} 3. d5 {[%emt 0:00:02]} Nce7 {[%emt 0:00:01]} 4. Nc3 {[%emt 0:00:03]} Ng6 {[%emt 0:00:03]} 5. Be3 {[%emt 0:00:09]} d6 {[%emt 0:00:03] [#]} 6. Qd2 $146 {[%emt 0:00:13] B00: Queen's Fianchetto Defence, Nimzowitsch Defence.} ({Predecessor:} 6. Bb5+ Bd7 7. Bxd7+ Qxd7 8. Qf3 Be7 9. g3 Nf6 10. h3 c5 11. Nge2 h5 12. Qg2 {½-½ (40) Kotilainen,A (2061)-Tauriainen,M (2138) Kajaani 2012}) 6... Be7 {[%emt 0:00:06]} 7. O-O-O {[%emt 0:00:04]} a6 {[%emt 0:00:01]} 8. g3 {[%emt 0:00:11] White is slightly better.} Nf6 {[%emt 0:00:21]} 9. f4 {[%emt 0:00:18]} Ng4 {[%emt 0:00:10]} 10. Nf3 {[%emt 0:00:01]} Nxe3 {[%emt 0:00:03]} 11. Qxe3 {[%emt 0:00:01]} Bg4 {[%emt 0:00:08]} 12. Kb1 {[%emt 0:00:06]} Bf6 {[%emt 0:00:31]} 13. h3 {[%emt 0:00:24]} (13. f5 {simplifies} Bxf3 14. Qxf3 Nf8 15. h4) 13... Bxf3 {[%emt 0:00:08]} 14. Qxf3 {[%emt 0:00:01]} exf4 {[%emt 0:00:12]} 15. gxf4 {[%emt 0:00:01]} O-O {[%emt 0:00:06]} 16. Ne2 {[%emt 0:00:37][%cal Oh3h4]} Re8 {[%emt 0:00:04] Against h4} 17. Ng3 {[%emt 0:00:03][%cal Oh3h4]} c6 {[%emt 0:00:45] Prevents h4.} (17... Nh4 $14 18. Qf2 Ng6) 18. dxc6 $16 {[%emt 0:00:45]} Qb6 {[%emt 0:00:02][%csl Gf6][%cal Rb6b2] [#]} 19. e5 {[%emt 0:00:08]} ({Better is} 19. c3 $16) 19... dxe5 $11 {[%emt 0:00:01]} 20. Ne4 {[%emt 0:00:01] Hoping for f5.} (20. cxb7 {looks sharper.} Rad8 21. Rxd8 Rxd8 22. Ne4) 20... Qxc6 {[%emt 0:00:07] Strongly threatening ...Rad8.} (20... bxc6 21. Nxf6+ gxf6 22. fxe5 $16) 21. f5 {[%emt 0:00:05]} (21. Rd6 $11 Qc7 22. Rxf6 exf4 23. Rxg6 (23. Rf5 Qd7 $17) 23... hxg6 24. Bd3) 21... Nf4 $40 {[%emt 0:00:13][%mdl 128] White needs to defend precisely. White is now going downhill.} 22. Rg1 {[%emt 0:00:07]} (22. Rd6 $15 Qc7 23. Nxf6+ gxf6 24. Rg1+ Kh8 25. Rxf6) 22... Red8 $17 {[%emt 0:00:10]} 23. Bd3 {[%emt 0:00:01]} Kh8 {[%emt 0:00:08]} 24. h4 {[%emt 0:00:04]} Rd4 {[%emt 0:00:05]} 25. h5 {[%emt 0:00:01]} (25. Ng5 $17) 25... h6 {[%emt 0:00:02]} ({Black should try} 25... Rad8 $19 26. a3 h6) 26. Qe3 {[%emt 0:00:14]} (26. c3 $17 Rd7 27. Bc2) 26... Rad8 $19 {[%emt 0:00:02]} (26... Nxh5 27. c3 Rd7 28. Bc2 Rxd1+ 29. Rxd1) 27. a3 {[%emt 0:00:07]} b5 {[%emt 0:00:02]} (27... Nxh5 $2 28. c3 R4d7 29. Bc2 $19) 28. Rgf1 {[%emt 0:00:01]} a5 {[%emt 0:00:06][%cal Ba6a5,Ba5b4][%mdl 32]} (28... Nxh5 $2 29. c3 R4d5 30. Bc2 $19) 29. Nc3 $2 {[%emt 0:00:02] [#]} (29. Nxf6 Qxf6 30. Rfe1) 29... b4 {[%emt 0:00:10]} (29... Nxh5 $2 {too greedy.} 30. Be2 Nf4 31. Qf3 Rxd1+ 32. Rxd1 Rxd1+ 33. Bxd1 $19) 30. axb4 {[%emt 0:00:01]} axb4 {[%emt 0:00:01]} ({Weaker is} 30... Nxh5 31. b5 Qc7 32. Ne4 $11) (30... Rxb4 $2 {perishes.} 31. Be4 Qc4 32. Rxd8+ Bxd8 33. Re1 $19) 31. Ne2 {[%emt 0:00:01]} Nxe2 {[%emt 0:00:03]} 32. Qxe2 {[%emt 0:00:00]} e4 {[%emt 0:00:02]} 33. Bxe4 {[%emt 0:00:05]} Rxd1+ {[%emt 0:00:01]} 34. Rxd1 {[%emt 0:00:04]} Rxd1+ {[%emt 0:00:01]} 35. Qxd1 {[%emt 0:00:02]} Qxe4 {[%emt 0:00:00]} 36. Qd7 {[%emt 0:00:00]} Qd4 {[%emt 0:00:08][%csl Gf6][%cal Rd4b2] Black mates.} 37. Qc8+ {[%emt 0:00:03]} Kh7 {[%emt 0:00:00][%csl Gf6][%cal Rd4b2]} 38. Kc1 {[%emt 0:00:03]} Qxb2+ {[%emt 0:00:02]} 39. Kd1 {[%emt 0:00:00]} Qd4+ {[%emt 0:00:01]} 40. Kc1 {[%emt 0:00:00]} Qa1+ {[%emt 0:00:02]} 41. Kd2 {[%emt 0:00:01]} Qc3+ {[%emt 0:00:01] Weighted Error Value: White=0.79/Black=0.20 (precise)} 0-1

[Event "4th Tata Steel India Blitz Women 2022"]
[Site "Kolkota"]
[Date "2022.12.04"]
[Round "18.2"]
[White "Koneru, Humpy"]
[Black "Kiolbasa, Oliwia"]
[Result "1-0"]
[ECO "D63"]
[WhiteElo "2574"]
[BlackElo "2406"]
[Annotator "TA"]
[PlyCount "99"]
[EventDate "2022.11.29"]
[EventType "tourn"]
[EventCountry "IND"]
[SourceTitle "playchess.com"]
[Source "ChessBase"]
[SourceQuality "1"]
[TimeControl "180+2"]

{[%evp 14,99,21,10,14,9,57,30,35,44,46,0,0,-11,22,15,33,35,57,59,54,42,49,53,37,32,36,13,13,13,13,16,16,16,22,17,25,11,18,-6,104,104,108,62,58,58,66,73,66,58,66,62,89,92,89,89,89,88,97,88,110,89,116,100,97,85,123,109,112,73,78,0,9,0,79,76,77,52,138,143,29980,29981,29981,29982,29981,29982,29978,29965]} 1. d4 {[%emt 0:00:01]} d5 {[%emt 0:00:01]} 2. c4 {[%emt 0:00:02]} e6 {[%emt 0:00:02]} 3. Nf3 {[%emt 0:00:04]} Nf6 {[%emt 0:00:02]} 4. Nc3 {[%emt 0:00:03]} Nbd7 {[%emt 0:00:03]} 5. Bg5 {[%emt 0:00:11]} Be7 {[%emt 0:00:06]} 6. e3 {[%emt 0:00:06]} h6 {[%emt 0:00:03]} 7. Bh4 {[%emt 0:00:07]} O-O {[%emt 0:00:05]} 8. Rc1 {[%emt 0:00:02]} c5 {[%emt 0:00:15] D63: Queen's Gambit Declined: Classical: 7 Rc1.} 9. dxc5 {[%emt 0:00:11]} Qa5 {[%emt 0:01:29] Inhibits b4. 9...Nxc5 gains popularity.} (9... Nxc5 $11 {was preferrable.} 10. cxd5 g5) 10. cxd5 {[%emt 0:00:39] [#]} Nxd5 $146 {[%emt 0:00:10] White has an edge.} ({Predecessor:} 10... Nxc5 11. dxe6 Bxe6 12. Be2 Nce4 13. O-O Nxc3 14. Rxc3 Qxa2 15. Qc2 Rfd8 16. Nd4 Bd5 {0-1 (39) Oknayan,K (1748)-Gamba,M Beirut 2014}) 11. Bxe7 {[%emt 0:00:08]} Nxe7 {[%emt 0:00:02]} 12. Bd3 {[%emt 0:01:02]} (12. Be2 $14) 12... Nxc5 $11 {[%emt 0:00:16] And now ...Rd8 would win.} 13. Bb1 {[%emt 0:00:05]} Nd7 {[%emt 0:00:02]} (13... Rd8 {is more complex.} 14. Nd2 b5 15. a3 b4) 14. O-O {[%emt 0:00:06]} (14. Qd4 {with more complications.} Rd8 15. Rd1 Nc6 16. Qc4) 14... Nf6 {[%emt 0:00:01]} 15. Qd6 {[%emt 0:00:14]} Nf5 {[%emt 0:00:35]} 16. Qe5 {[%emt 0:00:02]} Qxe5 {[%emt 0:00:07]} 17. Nxe5 {[%emt 0:00:01]} Rd8 {[%emt 0:00:06]} 18. Rfd1 {[%emt 0:00:04]} Bd7 {[%emt 0:00:06]} 19. g4 {[%emt 0:00:17]} (19. Nxd7 {simplifies} Nxd7 20. Bxf5 exf5 21. Rd5) 19... Ne7 {[%emt 0:00:03]} 20. h4 {[%emt 0:00:02]} (20. Kg2 {looks sharper.} Bc6+ 21. Kg3 g5 22. h4) 20... Be8 {[%emt 0:00:02]} 21. g5 $36 {[%emt 0:00:02][%mdl 2048] White is more active.} hxg5 {[%emt 0:00:03]} 22. hxg5 {[%emt 0:00:01]} Nfd5 {[%emt 0:00:02]} 23. Nxd5 {[%emt 0:00:02]} Nxd5 {[%emt 0:00:01]} (23... Rxd5 {simplifies} 24. Rxd5 Nxd5 25. Be4 Rd8) 24. Be4 {[%emt 0:00:01]} f6 {[%emt 0:00:04]} 25. gxf6 {[%emt 0:00:03]} gxf6 {[%emt 0:00:01]} 26. Nf3 {[%emt 0:00:02]} Bf7 {[%emt 0:00:04]} (26... Bc6 $11) 27. Bxd5 $1 $16 {[%emt 0:00:03] White is more active.} exd5 {[%emt 0:00:01] [#]} 28. Nd4 {[%emt 0:00:03]} (28. Rc7 $1 $16) 28... Rac8 $14 {[%emt 0:00:01]} 29. Kg2 {[%emt 0:00:02]} Bg6 {[%emt 0:00:03]} 30. Kg3 {[%emt 0:00:03]} Kf7 {[%emt 0:00:02]} 31. Nb5 {[%emt 0:00:04] Rxc8 is the strong threat.} Rxc1 {[%emt 0:00:03]} 32. Rxc1 {[%emt 0:00:01][%mdl 4096] Endgame aiming for Rc7+. KRB-KRN} a6 {[%emt 0:00:01]} 33. Rc7+ {[%emt 0:00:02]} Ke8 {[%emt 0:00:03]} 34. Nd4 {[%emt 0:00:02]} Rd7 {[%emt 0:00:01]} 35. Rc8+ {[%emt 0:00:03]} Ke7 {[%emt 0:00:01]} 36. Kf4 {[%emt 0:00:02]} Kd6 {[%emt 0:00:03]} 37. Rg8 {[%emt 0:00:05]} Bh7 {[%emt 0:00:02]} 38. Rf8 {[%emt 0:00:02]} Ke7 {[%emt 0:00:02]} 39. Rh8 {[%emt 0:00:01]} Kd6 {[%emt 0:00:01]} 40. a3 {[%emt 0:00:01]} Bd3 {[%emt 0:00:01]} 41. Rh6 {[%emt 0:00:02]} Ke7 {[%emt 0:00:02]} 42. Nf5+ {[%emt 0:00:02]} (42. f3 $16) 42... Ke6 $1 $11 {[%emt 0:00:05]} 43. Nd4+ {[%emt 0:00:03]} (43. Nh4 $11) 43... Ke7 $1 $16 {[%emt 0:00:01]} 44. f3 {[%emt 0:00:01]} Rc7 {[%emt 0:00:01]} 45. Nf5+ {[%emt 0:00:04]} Bxf5 {[%emt 0:00:02]} (45... Ke6 $14 46. Nd4+ Kf7) 46. Kxf5 {[%emt 0:00:01] White wants to mate with Rh7+.} b5 $2 {[%emt 0:00:03][%mdl 8192] [#] A mistake that costs the game.} (46... Rc5 $16) 47. Rh7+ $1 {[%emt 0:00:01] White mates.} ({Weaker is} 47. Rxf6 Rc2 $16) 47... Kd6 {[%emt 0:00:02]} 48. Rxc7 {[%emt 0:00:02]} Kxc7 {[%emt 0:00:01]} 49. Kxf6 {[%emt 0:00:01]} Kd6 {[%emt 0:00:00]} 50. f4 {[%emt 0:00:02] Weighted Error Value: White=0.12 (very precise) /Black=0.30} 1-0

[Event "4th Tata Steel India Blitz Women 2022"]
[Site "Kolkota"]
[Date "2022.12.04"]
[Round "18.3"]
[White "Muzychuk, Mariya"]
[Black "Dzagnidze, Nana"]
[Result "0-1"]
[ECO "C10"]
[WhiteElo "2528"]
[BlackElo "2517"]
[Annotator "TA"]
[PlyCount "106"]
[EventDate "2022.11.29"]
[EventType "tourn"]
[EventCountry "IND"]
[SourceTitle "playchess.com"]
[Source "ChessBase"]
[SourceQuality "1"]
[TimeControl "180+2"]

{[%evp 22,106,66,45,31,43,36,29,25,0,0,0,3,0,0,0,0,0,0,0,0,0,0,0,0,-4,-9,-9,0,0,2,2,2,0,6,0,0,0,0,0,0,0,0,-197,-94,-95,6,5,12,8,8,11,12,0,8,0,0,0,0,0,0,-2,0,0,0,-10,0,-8,0,-8,0,-8,-8,-125,-137,-328,-168,-327,-311,-292,-235,-234,-232,-222,-218,-1462,-1462]} 1. e4 {[%emt 0:00:01]} c5 {[%emt 0:00:01]} 2. Nf3 {[%emt 0:00:00]} e6 {[%emt 0:00:03]} 3. c3 {[%emt 0:00:03]} d5 {[%emt 0:00:06]} 4. exd5 {[%emt 0:00:01]} Qxd5 {[%emt 0:00:03]} 5. d4 {[%emt 0:00:01]} Nf6 {[%emt 0:00:02]} 6. Na3 {[%emt 0:00:08]} Nc6 {[%emt 0:00:03]} 7. Be3 {[%emt 0:00:02]} cxd4 {[%emt 0:00:10]} 8. Nb5 {[%emt 0:00:02]} Qd8 {[%emt 0:00:02]} 9. Nbxd4 {[%emt 0:00:03]} Nxd4 {[%emt 0:00:17]} 10. Bxd4 {[%emt 0:00:01]} Be7 {[%emt 0:00:02]} 11. Bd3 {[%emt 0:00:01]} O-O {[%emt 0:00:07]} 12. O-O {[%emt 0:00:05]} b6 {[%emt 0:00:22] C10: French with 3 Nc3: Unusual Black 3rd moves and 3...dxe4.} 13. Qc2 {[%emt 0:00:43]} h6 {[%emt 0:00:14]} 14. Rad1 {[%emt 0:00:03] Bxf6 is the strong threat.} Qe8 $1 {[%emt 0:00:06] White has an edge.} 15. a4 {[%emt 0:00:09]} Bb7 {[%emt 0:00:04]} 16. Ne5 {[%emt 0:00:04] [#]} Bc5 $146 {[%emt 0:00:26]} ({Predecessor:} 16... Qc8 17. Be2 Be4 18. Bd3 Bxd3 19. Rxd3 Qb7 20. Rfd1 Nh5 21. Be3 Rad8 22. Rd7 Rxd7 23. Rxd7 {1-0 (64) Meyer,I (1985)-Lange,A (1652) Bremen 2013}) 17. Bb5 {[%emt 0:00:48]} (17. Bxc5 {simplifies} bxc5 18. Rfe1 Qc8 19. Bb5) 17... Qe7 {[%emt 0:00:03]} 18. Nc6 {[%emt 0:00:10]} Bxc6 {[%emt 0:00:08]} 19. Bxc6 {[%emt 0:00:00] Hoping for Bxf6.} Rad8 {[%emt 0:00:01]} 20. Bxc5 {[%emt 0:00:13]} Qxc5 {[%emt 0:00:03]} 21. Bf3 {[%emt 0:00:02]} g5 {[%emt 0:00:12]} 22. h3 {[%emt 0:00:04]} Kg7 {[%emt 0:00:04]} 23. Rd2 {[%emt 0:00:04]} Rxd2 {[%emt 0:00:08]} 24. Qxd2 Qc4 {[%emt 0:00:01]} 25. Ra1 {[%emt 0:00:17]} Rc8 {[%emt 0:00:22][%cal Bf8c8,Bc8c7,Bc7d7][%mdl 32]} 26. a5 {[%emt 0:00:01]} Rc7 {[%emt 0:00:17]} 27. axb6 {[%emt 0:00:03]} axb6 {[%emt 0:00:01]} 28. Ra8 {[%emt 0:00:02]} Rd7 {[%emt 0:00:03]} 29. Qe3 {[%emt 0:00:01]} Qb5 {[%emt 0:00:14]} 30. b4 {[%emt 0:00:08]} Qc4 {[%emt 0:00:04]} 31. Qxb6 {[%emt 0:00:04]} Qxc3 {[%emt 0:00:02]} 32. Qb8 $2 {[%emt 0:00:02]} (32. Qc5 $11 {and White stays safe.} Qxc5 33. bxc5) 32... Qc1+ {[%emt 0:00:04]} (32... Qe1+ $1 $19 {has better winning chances.} 33. Kh2 Qxf2) 33. Kh2 $17 {[%emt 0:00:01] [#]} Qf4+ {[%emt 0:00:08]} ({Black should try} 33... Qd2 $1 $17 34. Ra3 Qb2) 34. Qxf4 $11 {[%emt 0:00:01]} gxf4 {[%emt 0:00:01][%mdl 4096] Endgame KRB-KRN} 35. b5 {[%emt 0:00:01]} Nd5 {[%emt 0:00:01]} 36. Rb8 {[%emt 0:00:07]} Rd6 $1 {[%emt 0:00:02] Prevents b6.} 37. h4 {[%emt 0:00:05]} Kf6 {[%emt 0:00:01]} 38. g3 {[%emt 0:00:04]} fxg3+ {[%emt 0:00:03]} 39. fxg3 {[%emt 0:00:00]} Nb6 {[%emt 0:00:05]} 40. g4 {[%emt 0:00:04]} Nc4 {[%emt 0:00:03]} 41. Kg3 {[%emt 0:00:06]} Rd3 {[%emt 0:00:01] And now ...Ne5 would win.} 42. Kf2 {[%emt 0:00:02]} Rb3 {[%emt 0:00:01]} 43. Be2 {[%emt 0:00:05]} Rb2 {[%emt 0:00:03]} 44. Ke1 {[%emt 0:00:11]} Ne5 {[%emt 0:00:02]} 45. Rb7 {[%emt 0:00:05]} Rb4 {[%emt 0:00:03]} 46. b6 {[%emt 0:00:06]} Nxg4 {[%emt 0:00:01]} 47. Rb8 {[%emt 0:00:06]} (47. Rc7 $11 {remains equal.}) 47... Ne5 $17 {[%emt 0:00:01][%cal Oe5d7]} 48. Ba6 $2 {[%emt 0:00:04] This costs White the game.} (48. Rb7 $17 {was necessary.}) 48... Nc6 {[%emt 0:00:01]} ({Resist} 48... Rxh4 49. Rd8 $18) (48... Nd7 $142 49. Rb7 Nc5) 49. Rh8 $2 {[%emt 0:00:02]} (49. Rb7) 49... Rxb6 $19 {[%emt 0:00:01]} ({Don't play} 49... Rxh4 50. b7 Rb4 51. Rc8 $18) 50. Bd3 {[%emt 0:00:02]} Kg7 {[%emt 0:00:01]} 51. Rh7+ {[%emt 0:00:00] [#]} Kg8 $1 {[%emt 0:00:03]} 52. Rxh6 {[%emt 0:00:01]} Ne5 {[%emt 0:00:01]} 53. Kd2 {[%emt 0:00:03]} (53. Bc2) 53... Rd6 {[%emt 0:00:06] Weighted Error Value: White=0.37/Black=0.11 (very precise)} 0-1